[Event "Titled Tuesday Blitz December 27 Early 2022"]
[White "Troltenier, Dirk"]
[Black "Volkov, Maksim"]
[WhiteFideId "4606400"]
[BlackFideId "54123070"]
[WhiteElo "2234"]
[BlackElo "2258"]
[Result "0-1"]
[Round "01"]
[TimeControl "180+2"]
[Date "2022.12.27"]
[WhiteClock "0:00:33"]
[BlackClock "0:00:06"]

1. e4 {[%clk 0:02:59]}  c5 {[%clk 0:02:59]} 2. c3 {[%clk 0:02:58]}  Nf6 {[%clk 0:02:56]} 3. e5 {[%clk 0:02:57]}  Nd5 {[%clk 0:02:56]} 4. d4 {[%clk 0:02:58]}  cxd4 {[%clk 0:02:45]} 5. Nf3 {[%clk 0:02:58]}  Nc6 {[%clk 0:02:41]} 6. Bc4 {[%clk 0:02:58]}  Nb6 {[%clk 0:02:19]} 7. Bf1 {[%clk 0:02:59]}  dxc3 {[%clk 0:02:12]} 8. Nxc3 {[%clk 0:02:58]}  e6 {[%clk 0:02:11]} 9. Bd3 {[%clk 0:02:57]}  d6 {[%clk 0:02:10]} 10. exd6 {[%clk 0:02:55]}  Bxd6 {[%clk 0:02:10]} 11. O-O {[%clk 0:02:56]}  h6 {[%clk 0:02:09]} 12. Qe2 {[%clk 0:02:57]}  O-O {[%clk 0:02:07]} 13. Qe4 {[%clk 0:02:54]}  f5 {[%clk 0:02:07]} 14. Qe2 {[%clk 0:02:53]}  Qf6 {[%clk 0:02:04]} 15. Be3 {[%clk 0:02:39]}  Nd7 {[%clk 0:01:42]} 16. Rad1 {[%clk 0:02:37]}  Nde5 {[%clk 0:01:42]} 17. Bb5 {[%clk 0:02:27]}  Bc7 {[%clk 0:01:31]} 18. Rfe1 {[%clk 0:02:15]}  a6 {[%clk 0:01:30]} 19. Ba4 {[%clk 0:02:13]}  b5 {[%clk 0:01:18]} 20. Bb3 {[%clk 0:02:13]}  Na5 {[%clk 0:01:19]} 21. Nd5 {[%clk 0:02:02]}  exd5 {[%clk 0:01:04]} 22. Bxd5+ {[%clk 0:02:03]}  Be6 {[%clk 0:01:03]} 23. Nxe5 {[%clk 0:01:39]}  Bxd5 {[%clk 0:00:48]} 24. Rxd5 {[%clk 0:01:27]}  Bxe5 {[%clk 0:00:47]} 25. Bc5 {[%clk 0:01:15]}  Bc7 {[%clk 0:00:22]} 26. Bxf8 {[%clk 0:01:09]}  Rxf8 {[%clk 0:00:23]} 27. Rd7 {[%clk 0:01:06]}  Bb8 {[%clk 0:00:16]} 28. Qe7 {[%clk 0:01:01]}  Nc6 {[%clk 0:00:13]} 29. Qc5 {[%clk 0:00:48]}  Rd8 {[%clk 0:00:09]} 30. Qd5+ {[%clk 0:00:47]}  Kh7 {[%clk 0:00:08]} 31. g3 {[%clk 0:00:42]}  Rxd7 {[%clk 0:00:07]} 32. Qxd7 {[%clk 0:00:43]}  Ne5 {[%clk 0:00:06]} 33. Qd5 {[%clk 0:00:41]}  Qd6 {[%clk 0:00:06]} 34. Qxd6 {[%clk 0:00:37]}  Bxd6 {[%clk 0:00:07]} 35. Rd1 {[%clk 0:00:37]}  Bc7 {[%clk 0:00:06]} 36. Rd5 {[%clk 0:00:37]}  Kg6 {[%clk 0:00:07]} 37. f4 {[%clk 0:00:37]}  Nf7 {[%clk 0:00:06]} 38. Rc5 {[%clk 0:00:36]}  Bb6 {[%clk 0:00:06]} 39. b4 {[%clk 0:00:33]}  Kf6 {[%clk 0:00:06]} 0-1


[Site "https://www.chess.com"]

[Event "Titled Tuesday Blitz December 27 Early 2022"]
[White "Vifleemskaia, Svetlana"]
[Black "Skvortsov, Andrei"]
[WhiteFideId "4129490"]
[BlackFideId "24108600"]
[WhiteElo "1971"]
[BlackElo "2313"]
[Result "0-1"]
[Round "01"]
[TimeControl "180+2"]
[Date "2022.12.27"]
[WhiteClock "0:00:04"]
[BlackClock "0:01:41"]

1. d4 {[%clk 0:02:49]}  e6 {[%clk 0:02:58]} 2. c4 {[%clk 0:02:48]}  Nf6 {[%clk 0:02:56]} 3. Nc3 {[%clk 0:02:48]}  c5 {[%clk 0:02:52]} 4. d5 {[%clk 0:02:48]}  exd5 {[%clk 0:02:53]} 5. cxd5 {[%clk 0:02:49]}  Bd6 {[%clk 0:02:53]} 6. e4 {[%clk 0:02:47]}  O-O {[%clk 0:02:53]} 7. Nf3 {[%clk 0:02:48]}  Re8 {[%clk 0:02:53]} 8. Nd2 {[%clk 0:02:47]}  Bc7 {[%clk 0:02:53]} 9. Be2 {[%clk 0:02:46]}  a6 {[%clk 0:02:52]} 10. a4 {[%clk 0:02:42]}  d6 {[%clk 0:02:52]} 11. O-O {[%clk 0:02:42]}  Nbd7 {[%clk 0:02:52]} 12. Qc2 {[%clk 0:02:39]}  Nf8 {[%clk 0:02:52]} 13. Nc4 {[%clk 0:02:38]}  Rb8 {[%clk 0:02:52]} 14. Na3 {[%clk 0:02:33]}  Ba5 {[%clk 0:02:44]} 15. Bd3 {[%clk 0:02:25]}  Ng6 {[%clk 0:02:43]} 16. f4 {[%clk 0:02:11]}  Bd7 {[%clk 0:02:37]} 17. Nc4 {[%clk 0:02:00]}  Bxc3 {[%clk 0:02:35]} 18. bxc3 {[%clk 0:01:58]}  Bc8 {[%clk 0:02:34]} 19. a5 {[%clk 0:01:57]}  Qc7 {[%clk 0:02:31]} 20. Kh1 {[%clk 0:01:21]}  Bd7 {[%clk 0:02:31]} 21. f5 {[%clk 0:01:04]}  Ne5 {[%clk 0:02:27]} 22. Nxe5 {[%clk 0:01:04]}  dxe5 {[%clk 0:02:25]} 23. c4 {[%clk 0:01:01]}  b5 {[%clk 0:02:22]} 24. axb6 {[%clk 0:00:57]}  Rxb6 {[%clk 0:02:21]} 25. Bd2 {[%clk 0:00:56]}  Qb7 {[%clk 0:02:20]} 26. Rfb1 {[%clk 0:00:52]}  Rb8 {[%clk 0:02:18]} 27. Rxb6 {[%clk 0:00:51]}  Qxb6 {[%clk 0:02:19]} 28. Rb1 {[%clk 0:00:48]}  Qc7 {[%clk 0:02:17]} 29. h3 {[%clk 0:00:44]}  Ne8 {[%clk 0:02:17]} 30. Kh2 {[%clk 0:00:41]}  Nd6 {[%clk 0:02:15]} 31. Ba5 {[%clk 0:00:35]}  Qc8 {[%clk 0:02:13]} 32. Qc3 {[%clk 0:00:24]}  f6 {[%clk 0:02:06]} 33. Bc2 {[%clk 0:00:20]}  Rxb1 {[%clk 0:02:03]} 34. Bxb1 {[%clk 0:00:19]}  Qb8 {[%clk 0:02:04]} 35. Bc2 {[%clk 0:00:19]}  g6 {[%clk 0:02:02]} 36. g4 {[%clk 0:00:18]}  Kf7 {[%clk 0:02:01]} 37. Kg3 {[%clk 0:00:17]}  h5 {[%clk 0:01:54]} 38. Kf3 {[%clk 0:00:13]}  hxg4+ {[%clk 0:01:54]} 39. hxg4 {[%clk 0:00:12]}  Qh8 {[%clk 0:01:54]} 40. Qe3 {[%clk 0:00:08]}  Qh1+ {[%clk 0:01:53]} 41. Ke2 {[%clk 0:00:08]}  Qg2+ {[%clk 0:01:51]} 42. Kd3 {[%clk 0:00:07]}  gxf5 {[%clk 0:01:44]} 43. gxf5 {[%clk 0:00:07]}  Nxf5 {[%clk 0:01:43]} 44. Qd2 {[%clk 0:00:04]}  Qf3+ {[%clk 0:01:41]} 0-1


[Site "https://www.chess.com"]

[Event "Titled Tuesday Blitz December 27 Early 2022"]
[White "Vlassov, Nikolai"]
[Black "Ardila, Oscar Humberto"]
[WhiteFideId "4103360"]
[BlackFideId "4404742"]
[WhiteElo "2283"]
[BlackElo "1982"]
[Result "1-0"]
[Round "01"]
[TimeControl "180+2"]
[Date "2022.12.27"]
[WhiteClock "0:00:19"]
[BlackClock "0:00:07"]

1. e4 {[%clk 0:02:59]}  e5 {[%clk 0:02:55]} 2. Bc4 {[%clk 0:02:58]}  Nf6 {[%clk 0:02:52]} 3. d3 {[%clk 0:02:58]}  Bc5 {[%clk 0:02:52]} 4. Nf3 {[%clk 0:02:58]}  Nc6 {[%clk 0:02:52]} 5. Bg5 {[%clk 0:02:58]}  d6 {[%clk 0:02:51]} 6. Nc3 {[%clk 0:02:57]}  Bb4 {[%clk 0:02:50]} 7. h3 {[%clk 0:02:55]}  h6 {[%clk 0:02:49]} 8. Bh4 {[%clk 0:02:54]}  Qe7 {[%clk 0:02:48]} 9. Qe2 {[%clk 0:02:50]}  g5 {[%clk 0:02:48]} 10. Bg3 {[%clk 0:02:49]}  Nd4 {[%clk 0:02:42]} 11. Nxd4 {[%clk 0:02:48]}  exd4 {[%clk 0:02:42]} 12. a3 {[%clk 0:02:49]}  dxc3 {[%clk 0:02:40]} 13. axb4 {[%clk 0:02:49]}  cxb2 {[%clk 0:02:40]} 14. Rb1 {[%clk 0:02:49]}  a5 {[%clk 0:02:40]} 15. b5 {[%clk 0:02:42]}  Be6 {[%clk 0:02:36]} 16. Bxe6 {[%clk 0:02:40]}  fxe6 {[%clk 0:02:34]} 17. Rxb2 {[%clk 0:02:36]}  O-O {[%clk 0:02:33]} 18. O-O {[%clk 0:02:35]}  e5 {[%clk 0:02:29]} 19. c3 {[%clk 0:02:26]}  b6 {[%clk 0:02:17]} 20. Re1 {[%clk 0:02:24]}  Rae8 {[%clk 0:02:17]} 21. Kh1 {[%clk 0:02:14]}  Qf7 {[%clk 0:02:17]} 22. f3 {[%clk 0:02:08]}  Nh5 {[%clk 0:02:16]} 23. Bh2 {[%clk 0:02:08]}  Kh7 {[%clk 0:02:12]} 24. d4 {[%clk 0:02:04]}  Rg8 {[%clk 0:01:56]} 25. dxe5 {[%clk 0:02:01]}  dxe5 {[%clk 0:01:56]} 26. Rd1 {[%clk 0:02:00]}  Re7 {[%clk 0:01:55]} 27. Rbd2 {[%clk 0:01:59]}  Nf4 {[%clk 0:01:50]} 28. Bxf4 {[%clk 0:01:59]}  gxf4 {[%clk 0:01:51]} 29. c4 {[%clk 0:01:48]}  Qe6 {[%clk 0:01:46]} 30. Rd5 {[%clk 0:01:40]}  Reg7 {[%clk 0:01:46]} 31. c5 {[%clk 0:01:31]}  bxc5 {[%clk 0:01:37]} 32. Rxc5 {[%clk 0:01:30]}  Rg3 {[%clk 0:01:29]} 33. Rxc7+ {[%clk 0:01:22]}  Kh8 {[%clk 0:01:28]} 34. Rdd7 {[%clk 0:01:09]}  R3g7 {[%clk 0:00:47]} 35. Rxg7 {[%clk 0:01:01]}  Rxg7 {[%clk 0:00:48]} 36. Rc6 {[%clk 0:01:01]}  Qb3 {[%clk 0:00:43]} 37. Rxh6+ {[%clk 0:00:57]}  Kg8 {[%clk 0:00:42]} 38. Rc6 {[%clk 0:00:55]}  Qb1+ {[%clk 0:00:41]} 39. Kh2 {[%clk 0:00:55]}  Qb3 {[%clk 0:00:36]} 40. b6 {[%clk 0:00:45]}  a4 {[%clk 0:00:35]} 41. Qc4+ {[%clk 0:00:44]}  Qxc4 {[%clk 0:00:35]} 42. Rxc4 {[%clk 0:00:43]}  Rb7 {[%clk 0:00:35]} 43. Rxa4 {[%clk 0:00:43]}  Rxb6 {[%clk 0:00:35]} 44. Ra5 {[%clk 0:00:43]}  Re6 {[%clk 0:00:35]} 45. g3 {[%clk 0:00:42]}  fxg3+ {[%clk 0:00:32]} 46. Kxg3 {[%clk 0:00:42]}  Kg7 {[%clk 0:00:33]} 47. f4 {[%clk 0:00:41]}  Rg6+ {[%clk 0:00:33]} 48. Kf3 {[%clk 0:00:41]}  exf4 {[%clk 0:00:31]} 49. Kxf4 {[%clk 0:00:37]}  Rh6 {[%clk 0:00:29]} 50. Kg4 {[%clk 0:00:37]}  Re6 {[%clk 0:00:27]} 51. Kf5 {[%clk 0:00:33]}  Rf6+ {[%clk 0:00:27]} 52. Ke5 {[%clk 0:00:32]}  Rh6 {[%clk 0:00:26]} 53. Ra7+ {[%clk 0:00:31]}  Kf8 {[%clk 0:00:25]} 54. Ra3 {[%clk 0:00:30]}  Ke7 {[%clk 0:00:24]} 55. Kf5 {[%clk 0:00:26]}  Rh5+ {[%clk 0:00:24]} 56. Kg4 {[%clk 0:00:26]}  Re5 {[%clk 0:00:23]} 57. Re3 {[%clk 0:00:24]}  Kf6 {[%clk 0:00:22]} 58. h4 {[%clk 0:00:24]}  Kg6 {[%clk 0:00:21]} 59. Kf4 {[%clk 0:00:20]}  Rh5 {[%clk 0:00:19]} 60. Rg3+ {[%clk 0:00:19]}  Kf6 {[%clk 0:00:19]} 61. Rh3 {[%clk 0:00:19]}  Ke6 {[%clk 0:00:17]} 62. Kg4 {[%clk 0:00:19]}  Re5 {[%clk 0:00:18]} 63. Re3 {[%clk 0:00:19]}  Kf6 {[%clk 0:00:18]} 64. h5 {[%clk 0:00:20]}  Rg5+ {[%clk 0:00:18]} 65. Kh4 {[%clk 0:00:20]}  Rg1 {[%clk 0:00:18]} 66. h6 {[%clk 0:00:18]}  Rh1+ {[%clk 0:00:13]} 67. Rh3 {[%clk 0:00:18]}  Rg1 {[%clk 0:00:13]} 68. Kh5 {[%clk 0:00:17]}  Kf7 {[%clk 0:00:11]} 69. h7 {[%clk 0:00:17]}  Kg7 {[%clk 0:00:11]} 70. Rh4 {[%clk 0:00:17]}  Kxh7 {[%clk 0:00:09]} 71. Rg4 {[%clk 0:00:17]}  Rh1+ {[%clk 0:00:09]} 72. Kg5 {[%clk 0:00:18]}  Kg7 {[%clk 0:00:08]} 73. Kf5+ {[%clk 0:00:18]}  Kf7 {[%clk 0:00:08]} 74. Ke5 {[%clk 0:00:18]}  Ke7 {[%clk 0:00:08]} 75. Rg7+ {[%clk 0:00:18]}  Kf8 {[%clk 0:00:08]} 76. Ra7 {[%clk 0:00:19]}  Rh5+ {[%clk 0:00:08]} 77. Kd6 {[%clk 0:00:18]}  Rh6+ {[%clk 0:00:08]} 78. Kd5 {[%clk 0:00:19]}  Rh1 {[%clk 0:00:07]} 79. e5 {[%clk 0:00:19]}  Ke8 {[%clk 0:00:08]} 80. Kd6 {[%clk 0:00:19]}  Rh6+ {[%clk 0:00:07]} 81. e6 {[%clk 0:00:19]}  Rh1 {[%clk 0:00:07]} 82. Ra8# {[%clk 0:00:19]} 1-0


[Site "https://www.chess.com"]

[Event "Titled Tuesday Blitz December 27 Early 2022"]
[White "Wagner, Dinara"]
[Black "Flis, Pawel"]
[WhiteFideId "24157570"]
[BlackFideId "1112864"]
[WhiteElo "2417"]
[BlackElo "1879"]
[Result "1-0"]
[Round "01"]
[TimeControl "180+2"]
[Date "2022.12.27"]
[WhiteClock "0:00:13"]
[BlackClock "0:00:01"]

1. Nf3 {[%clk 0:02:52]}  Nf6 {[%clk 0:02:56]} 2. g3 {[%clk 0:02:52]}  g6 {[%clk 0:02:55]} 3. Bg2 {[%clk 0:02:52]}  Bg7 {[%clk 0:02:55]} 4. b3 {[%clk 0:02:53]}  O-O {[%clk 0:02:56]} 5. Bb2 {[%clk 0:02:53]}  d6 {[%clk 0:02:52]} 6. O-O {[%clk 0:02:54]}  e5 {[%clk 0:02:52]} 7. c4 {[%clk 0:02:54]}  Nc6 {[%clk 0:02:51]} 8. d3 {[%clk 0:02:53]}  h6 {[%clk 0:02:49]} 9. Nbd2 {[%clk 0:02:53]}  Be6 {[%clk 0:02:47]} 10. e3 {[%clk 0:02:51]}  Qd7 {[%clk 0:02:47]} 11. Re1 {[%clk 0:02:44]}  Bh3 {[%clk 0:02:44]} 12. Bh1 {[%clk 0:02:43]}  Ng4 {[%clk 0:02:44]} 13. d4 {[%clk 0:02:37]}  f5 {[%clk 0:02:40]} 14. dxe5 {[%clk 0:02:20]}  dxe5 {[%clk 0:02:39]} 15. Nf1 {[%clk 0:02:18]}  Qe7 {[%clk 0:02:32]} 16. Qc1 {[%clk 0:02:12]}  Kh7 {[%clk 0:02:26]} 17. Ba3 {[%clk 0:02:11]}  Nb4 {[%clk 0:02:20]} 18. Qd2 {[%clk 0:01:57]}  a5 {[%clk 0:02:18]} 19. Rad1 {[%clk 0:01:55]}  Rfd8 {[%clk 0:02:15]} 20. Qe2 {[%clk 0:01:54]}  Rxd1 {[%clk 0:02:11]} 21. Rxd1 {[%clk 0:01:55]}  Rd8 {[%clk 0:02:11]} 22. e4 {[%clk 0:01:42]}  Rd7 {[%clk 0:01:50]} 23. Rxd7 {[%clk 0:01:30]}  Qxd7 {[%clk 0:01:50]} 24. exf5 {[%clk 0:01:31]}  gxf5 {[%clk 0:01:49]} 25. Nh4 {[%clk 0:01:31]}  c6 {[%clk 0:01:40]} 26. Nxf5 {[%clk 0:01:29]}  Nd3 {[%clk 0:01:05]} 27. Nxg7 {[%clk 0:00:38]}  Kxg7 {[%clk 0:01:00]} 28. Bg2 {[%clk 0:00:23]}  Ngxf2 {[%clk 0:00:57]} 29. Bb2 {[%clk 0:00:20]}  Bxg2 {[%clk 0:00:36]} 30. Kxg2 {[%clk 0:00:20]}  Nxb2 {[%clk 0:00:14]} 31. Qxe5+ {[%clk 0:00:19]}  Kg6 {[%clk 0:00:10]} 32. Qxb2 {[%clk 0:00:19]}  Nd3 {[%clk 0:00:09]} 33. Qc2 {[%clk 0:00:20]}  Qf5 {[%clk 0:00:09]} 34. Qe2 {[%clk 0:00:14]}  Nc1 {[%clk 0:00:03]} 35. Qf3 {[%clk 0:00:13]}  Qc2+ {[%clk 0:00:01]} 36. Qf2 {[%clk 0:00:13]} 1-0


[Site "https://www.chess.com"]

[Event "Titled Tuesday Blitz December 27 Early 2022"]
[White "Weetik, Vjacheslav"]
[Black "Stork, Oliver"]
[WhiteFideId "4153472"]
[BlackFideId "12955728"]
[WhiteElo "2423"]
[BlackElo "2342"]
[Result "1-0"]
[Round "01"]
[TimeControl "180+2"]
[Date "2022.12.27"]
[WhiteClock "0:01:08"]
[BlackClock "0:00:16"]

1. d4 {[%clk 0:02:57]}  Nf6 {[%clk 0:02:59]} 2. Nf3 {[%clk 0:02:57]}  e6 {[%clk 0:02:59]} 3. c4 {[%clk 0:02:56]}  b6 {[%clk 0:02:46]} 4. g3 {[%clk 0:02:51]}  Ba6 {[%clk 0:02:45]} 5. b3 {[%clk 0:02:50]}  Bb7 {[%clk 0:02:44]} 6. Bg2 {[%clk 0:02:48]}  Bb4+ {[%clk 0:02:33]} 7. Bd2 {[%clk 0:02:40]}  a5 {[%clk 0:02:32]} 8. O-O {[%clk 0:02:40]}  O-O {[%clk 0:02:29]} 9. Bg5 {[%clk 0:02:40]}  h6 {[%clk 0:02:28]} 10. Bxf6 {[%clk 0:02:39]}  Qxf6 {[%clk 0:02:18]} 11. a3 {[%clk 0:02:39]}  Bd6 {[%clk 0:02:13]} 12. Nc3 {[%clk 0:02:37]}  Nc6 {[%clk 0:01:20]} 13. e4 {[%clk 0:02:25]}  e5 {[%clk 0:01:20]} 14. Nd5 {[%clk 0:02:13]}  Qd8 {[%clk 0:01:10]} 15. dxe5 {[%clk 0:02:05]}  Nxe5 {[%clk 0:01:10]} 16. Nd4 {[%clk 0:02:00]}  Bxd5 {[%clk 0:01:01]} 17. cxd5 {[%clk 0:01:54]}  Re8 {[%clk 0:00:49]} 18. Kh1 {[%clk 0:01:50]}  f6 {[%clk 0:00:40]} 19. f4 {[%clk 0:01:46]}  Nf7 {[%clk 0:00:37]} 20. Qh5 {[%clk 0:01:30]}  Bf8 {[%clk 0:00:26]} 21. Rae1 {[%clk 0:01:16]}  Bxa3 {[%clk 0:00:21]} 22. Nf5 {[%clk 0:01:12]}  Bf8 {[%clk 0:00:16]} 23. Qg6 {[%clk 0:01:08]} 1-0


[Site "https://www.chess.com"]

[Event "Titled Tuesday Blitz December 27 Early 2022"]
[White "Xiong, Jeffery"]
[Black "Kvaloy, Aksel Bu"]
[WhiteFideId "2047640"]
[BlackFideId "1528815"]
[WhiteElo "2692"]
[BlackElo "2321"]
[Result "1-0"]
[Round "01"]
[TimeControl "180+2"]
[Date "2022.12.27"]
[WhiteClock "0:00:14"]
[BlackClock "0:00:17"]

1. e4 {[%clk 0:03:00]}  e5 {[%clk 0:02:59]} 2. Nf3 {[%clk 0:02:59]}  Nf6 {[%clk 0:02:59]} 3. Nc3 {[%clk 0:02:59]}  Nc6 {[%clk 0:02:58]} 4. d4 {[%clk 0:03:00]}  exd4 {[%clk 0:02:58]} 5. Nxd4 {[%clk 0:03:01]}  Bb4 {[%clk 0:02:55]} 6. Nxc6 {[%clk 0:03:01]}  bxc6 {[%clk 0:02:55]} 7. Bd3 {[%clk 0:03:02]}  d5 {[%clk 0:02:54]} 8. exd5 {[%clk 0:03:02]}  O-O {[%clk 0:02:54]} 9. O-O {[%clk 0:03:03]}  Bg4 {[%clk 0:02:54]} 10. f3 {[%clk 0:03:02]}  Bh5 {[%clk 0:02:55]} 11. dxc6 {[%clk 0:03:03]}  Qd4+ {[%clk 0:02:54]} 12. Kh1 {[%clk 0:03:03]}  Bxc3 {[%clk 0:02:55]} 13. bxc3 {[%clk 0:03:04]}  Qxc3 {[%clk 0:02:56]} 14. Rb1 {[%clk 0:03:05]}  Bg6 {[%clk 0:02:55]} 15. Rb3 {[%clk 0:03:04]}  Qxc6 {[%clk 0:02:55]} 16. Bb2 {[%clk 0:03:05]}  Bxd3 {[%clk 0:02:54]} 17. cxd3 {[%clk 0:03:06]}  Rfd8 {[%clk 0:02:52]} 18. Qa1 {[%clk 0:03:05]}  Rab8 {[%clk 0:02:48]} 19. Rc1 {[%clk 0:03:04]}  Qd6 {[%clk 0:02:42]} 20. Be5 {[%clk 0:03:03]}  Qe6 {[%clk 0:02:36]} 21. Rxb8 {[%clk 0:02:45]}  Rxb8 {[%clk 0:02:35]} 22. Bxc7 {[%clk 0:02:46]}  Rc8 {[%clk 0:02:31]} 23. Re1 {[%clk 0:02:35]}  Qd5 {[%clk 0:01:56]} 24. Be5 {[%clk 0:02:33]}  Qxd3 {[%clk 0:01:50]} 25. Bxf6 {[%clk 0:02:23]}  gxf6 {[%clk 0:01:51]} 26. Qxf6 {[%clk 0:02:21]}  Qd2 {[%clk 0:01:46]} 27. Qa1 {[%clk 0:02:04]}  h6 {[%clk 0:01:25]} 28. h3 {[%clk 0:02:00]}  Kh7 {[%clk 0:01:19]} 29. Qe5 {[%clk 0:01:45]}  Rc2 {[%clk 0:01:01]} 30. Qf5+ {[%clk 0:01:35]}  Kg7 {[%clk 0:01:01]} 31. Qg4+ {[%clk 0:01:35]}  Kf8 {[%clk 0:01:00]} 32. Rb1 {[%clk 0:01:18]}  Rc1+ {[%clk 0:00:53]} 33. Rxc1 {[%clk 0:01:19]}  Qxc1+ {[%clk 0:00:54]} 34. Kh2 {[%clk 0:01:19]}  Qc7+ {[%clk 0:00:48]} 35. Qg3 {[%clk 0:01:17]}  Qa5 {[%clk 0:00:47]} 36. Qd6+ {[%clk 0:01:14]}  Kg7 {[%clk 0:00:47]} 37. a3 {[%clk 0:01:15]}  Qa4 {[%clk 0:00:46]} 38. Qb4 {[%clk 0:01:08]}  Qc6 {[%clk 0:00:45]} 39. Qd4+ {[%clk 0:01:07]}  Kg8 {[%clk 0:00:44]} 40. Qxa7 {[%clk 0:01:04]}  Qd6+ {[%clk 0:00:42]} 41. Kh1 {[%clk 0:01:04]}  Qd1+ {[%clk 0:00:42]} 42. Qg1 {[%clk 0:01:04]}  Qa4 {[%clk 0:00:39]} 43. Qc5 {[%clk 0:00:57]}  Qd1+ {[%clk 0:00:39]} 44. Kh2 {[%clk 0:00:58]}  Qa4 {[%clk 0:00:33]} 45. Qb4 {[%clk 0:00:54]}  Qa7 {[%clk 0:00:31]} 46. a4 {[%clk 0:00:51]}  Qc7+ {[%clk 0:00:31]} 47. f4 {[%clk 0:00:51]}  Qa7 {[%clk 0:00:29]} 48. a5 {[%clk 0:00:51]}  Qa6 {[%clk 0:00:30]} 49. Qb8+ {[%clk 0:00:37]}  Kg7 {[%clk 0:00:29]} 50. Qe5+ {[%clk 0:00:34]}  Kg8 {[%clk 0:00:27]} 51. Qb8+ {[%clk 0:00:27]}  Kg7 {[%clk 0:00:26]} 52. Qb6 {[%clk 0:00:28]}  Qc4 {[%clk 0:00:23]} 53. Qd6 {[%clk 0:00:26]}  Qa4 {[%clk 0:00:17]} 54. a6 {[%clk 0:00:19]}  h5 {[%clk 0:00:17]} 55. Qe5+ {[%clk 0:00:19]}  Kg6 {[%clk 0:00:16]} 56. Qg5+ {[%clk 0:00:19]}  Kh7 {[%clk 0:00:16]} 57. Qxh5+ {[%clk 0:00:20]}  Kg7 {[%clk 0:00:17]} 58. Qg5+ {[%clk 0:00:21]}  Kh7 {[%clk 0:00:18]} 59. Qf6 {[%clk 0:00:21]}  Kg8 {[%clk 0:00:17]} 60. Qd6 {[%clk 0:00:18]}  Kg7 {[%clk 0:00:17]} 61. Qe5+ {[%clk 0:00:18]}  Kh7 {[%clk 0:00:17]} 62. h4 {[%clk 0:00:18]}  Kg6 {[%clk 0:00:16]} 63. h5+ {[%clk 0:00:18]}  Kh7 {[%clk 0:00:17]} 64. Qf5+ {[%clk 0:00:16]}  Kg7 {[%clk 0:00:17]} 65. h6+ {[%clk 0:00:16]}  Kxh6 {[%clk 0:00:18]} 66. Qf6+ {[%clk 0:00:16]}  Kh7 {[%clk 0:00:18]} 67. Qxf7+ {[%clk 0:00:17]}  Kh6 {[%clk 0:00:19]} 68. a7 {[%clk 0:00:14]}  Qe4 {[%clk 0:00:17]} 69. Qf6+ {[%clk 0:00:14]}  Kh5 {[%clk 0:00:17]} 70. Qg5# {[%clk 0:00:14]} 1-0


[Site "https://www.chess.com"]

[Event "Titled Tuesday Blitz December 27 Early 2022"]
[White "Yaniuk, Volodymyr"]
[Black "Lenderman, Aleksandr"]
[WhiteFideId "14133083"]
[BlackFideId "2021285"]
[WhiteElo "2223"]
[BlackElo "2572"]
[Result "0-1"]
[Round "01"]
[TimeControl "180+2"]
[Date "2022.12.27"]
[WhiteClock "0:00:06"]
[BlackClock "0:00:52"]

1. d4 {[%clk 0:02:58]}  e6 {[%clk 0:02:59]} 2. c4 {[%clk 0:02:58]}  b6 {[%clk 0:02:59]} 3. g3 {[%clk 0:02:56]}  Bb7 {[%clk 0:02:57]} 4. d5 {[%clk 0:02:57]}  b5 {[%clk 0:02:49]} 5. Bg2 {[%clk 0:02:51]}  bxc4 {[%clk 0:02:47]} 6. e4 {[%clk 0:02:49]}  exd5 {[%clk 0:02:45]} 7. exd5 {[%clk 0:02:50]}  Nf6 {[%clk 0:02:44]} 8. Nc3 {[%clk 0:02:50]}  Bb4 {[%clk 0:02:44]} 9. Ne2 {[%clk 0:02:42]}  O-O {[%clk 0:02:43]} 10. O-O {[%clk 0:02:42]}  h6 {[%clk 0:02:42]} 11. Qd4 {[%clk 0:02:27]}  d6 {[%clk 0:02:37]} 12. Qxc4 {[%clk 0:02:12]}  a5 {[%clk 0:02:32]} 13. Qh4 {[%clk 0:01:56]}  Nbd7 {[%clk 0:02:24]} 14. Be3 {[%clk 0:01:55]}  Ne5 {[%clk 0:02:09]} 15. Rfd1 {[%clk 0:01:38]}  Ba6 {[%clk 0:02:00]} 16. a3 {[%clk 0:01:20]}  Ng6 {[%clk 0:01:53]} 17. Qd4 {[%clk 0:01:10]}  Bc5 {[%clk 0:01:53]} 18. Qd2 {[%clk 0:01:09]}  Bxe3 {[%clk 0:01:53]} 19. Qxe3 {[%clk 0:01:09]}  Re8 {[%clk 0:01:53]} 20. Qd2 {[%clk 0:01:08]}  Ne5 {[%clk 0:01:52]} 21. Nd4 {[%clk 0:01:06]}  Rb8 {[%clk 0:01:51]} 22. b4 {[%clk 0:01:04]}  axb4 {[%clk 0:01:46]} 23. axb4 {[%clk 0:01:05]}  Bb7 {[%clk 0:01:41]} 24. Ra7 {[%clk 0:00:59]}  Qd7 {[%clk 0:01:36]} 25. h3 {[%clk 0:00:53]}  Nc4 {[%clk 0:01:30]} 26. Qa2 {[%clk 0:00:48]}  Nb6 {[%clk 0:01:30]} 27. Nb3 {[%clk 0:00:30]}  Ra8 {[%clk 0:01:28]} 28. Rxa8 {[%clk 0:00:20]}  Rxa8 {[%clk 0:01:27]} 29. Na5 {[%clk 0:00:21]}  Ba6 {[%clk 0:01:25]} 30. Qd2 {[%clk 0:00:19]}  Nc4 {[%clk 0:01:24]} 31. Qd4 {[%clk 0:00:18]}  Nxa5 {[%clk 0:01:22]} 32. bxa5 {[%clk 0:00:19]}  Qc8 {[%clk 0:01:19]} 33. Rb1 {[%clk 0:00:18]}  Rb8 {[%clk 0:01:19]} 34. Rb4 {[%clk 0:00:18]}  Rxb4 {[%clk 0:01:17]} 35. Qxb4 {[%clk 0:00:19]}  Nd7 {[%clk 0:01:17]} 36. Na4 {[%clk 0:00:17]}  Qb7 {[%clk 0:01:15]} 37. Qxb7 {[%clk 0:00:13]}  Bxb7 {[%clk 0:01:16]} 38. Kf1 {[%clk 0:00:13]}  Ne5 {[%clk 0:01:09]} 39. Nb2 {[%clk 0:00:11]}  g5 {[%clk 0:01:01]} 40. Ke2 {[%clk 0:00:11]}  Kf8 {[%clk 0:01:02]} 41. Ke3 {[%clk 0:00:11]}  Ke7 {[%clk 0:01:01]} 42. f4 {[%clk 0:00:11]}  gxf4+ {[%clk 0:01:01]} 43. gxf4 {[%clk 0:00:12]}  Nd7 {[%clk 0:01:02]} 44. Kd4 {[%clk 0:00:12]}  Nc5 {[%clk 0:01:01]} 45. Kc4 {[%clk 0:00:09]}  Ba6+ {[%clk 0:01:00]} 46. Kb4 {[%clk 0:00:09]}  Kf6 {[%clk 0:01:00]} 47. Nc4 {[%clk 0:00:06]}  Kf5 {[%clk 0:00:54]} 48. Bf3 {[%clk 0:00:06]}  Kxf4 {[%clk 0:00:54]} 49. Bg4 {[%clk 0:00:06]}  f5 {[%clk 0:00:54]} 50. Bh5 {[%clk 0:00:07]}  Ke4 {[%clk 0:00:54]} 51. Bf7 {[%clk 0:00:07]}  Kd4 {[%clk 0:00:53]} 52. Nd2 {[%clk 0:00:06]}  Nd3+ {[%clk 0:00:52]} 0-1


[Site "https://www.chess.com"]